bitfinex/quotes_ETHUSD_20241105
["timestamp","ask_amount","ask_price","bid_price","bid_amount"]
[1730847802712,4.10192,2437.9,2437.4,4.93511]
[1730847802836,4.10192,2437.9,2437.4,5.838901]
[1730847803153,4.95499624,2438.0,2437.4,5.838901]
[1730847803154,4.95499624,2438.0,2437.5,4.10251]
[1730847803459,4.10189,2437.9,2437.4,5.838901]
[1730847803820,4.95499624,2438.0,2437.4,1.736191]
[1730847804037,0.85315624,2438.0,2437.6,4.10228]
[1730847804237,0.85315624,2438.0,2437.5,4.1025]
[1730847804476,4.10189,2437.9,2437.4,0.8324]
[1730847804772,4.10199,2437.9,2437.4,0.8324]
[1730847805275,4.10199,2437.9,2437.4,4.93512]
[1730847806539,4.95501624,2438.0,2437.4,4.93512]
[1730847806540,0.05955624,2438.0,2437.6,0.8324]
[1730847806778,0.05955624,2438.0,2437.8,4.10196]
[1730847807137,0.05955624,2438.0,2437.9,5.01632714]
[1730847807339,0.05955624,2438.0,2437.9,7.93429]
[1730847807587,0.005,2438.6,2438.1,0.8324]
[1730847807798,0.005,2438.6,2438.5,8.5799096]
[1730847808788,0.005,2438.6,2438.5,5.42368]
[1730847809138,0.005,2438.6,2438.5,0.7728]
[1730847809345,0.005,2438.6,2438.5,4.87368]
[1730847809782,0.005,2438.6,2438.5,0.7728]
[1730847810088,0.005,2438.6,2438.5,5.4430672]
[1730847810294,0.0597488,2439.2,2439.1,4.09987]
[1730847810446,0.0597488,2439.2,2439.1,11.5788996]
[1730847810795,0.0597488,2439.2,2439.1,8.42267]
[1730847810954,0.0597488,2439.2,2439.1,8.77902623]
[1730847811158,0.0597488,2439.2,2439.1,10.70017677]
[1730847811378,0.0597488,2439.2,2439.1,10.34382054]
[1730847811897,0.0597488,2439.2,2439.1,5.69395054]
[1730847812202,0.0597488,2439.2,2438.9,4.10006]
[1730847812346,0.0597488,2439.2,2439.0,4.09994]
[1730847812546,0.0597488,2439.2,2438.8,4.87307]
[1730847812753,0.0597488,2439.2,2438.9,4.1002]
[1730847813184,0.0597488,2439.2,2438.8,4.87307]
[1730847813389,0.0597488,2439.2,2438.9,0.80292996]
[1730847814464,4.10001,2439.1,2438.8,0.7728]
[1730847814882,4.10013,2439.0,2438.8,0.7728]
[1730847815192,8.19999,2439.1,2438.8,0.7728]
[1730847815398,4.10005,2439.0,2438.8,0.7728]
[1730847815597,4.10047,2438.8,2438.6,0.7728]
[1730847815890,4.09988,2439.1,2438.6,4.87349]
[1730847816201,4.09988,2439.1,2438.6,5.770927]
[1730847816696,4.1595488,2439.2,2438.6,5.770927]
[1730847816897,4.1595488,2439.2,2438.6,5.770847]
[1730847817193,4.09995,2439.1,2438.6,1.670237]
[1730847817393,4.09995,2439.1,2438.6,5.770937]
[1730847817743,8.19998,2439.1,2438.6,1.670237]
[1730847817871,4.09995,2439.1,2438.6,1.670237]
[1730847818069,8.19994,2439.1,2438.6,1.670237]
[1730847818274,4.09995,2439.1,2438.6,1.670237]
[1730847818474,8.19995,2439.1,2438.6,1.670237]
[1730847818960,4.09988,2439.1,2438.4,4.10104]
[1730847819162,4.09988,2439.1,2438.6,4.10059]
[1730847819589,4.09988,2439.1,2438.6,8.20118]
[1730847819894,0.0597488,2439.2,2438.9,4.1002]
[1730847820099,0.0597488,2439.2,2438.8,4.10027]
[1730847820257,0.0597488,2439.2,2438.9,0.487307]
[1730847821055,0.0597488,2439.2,2438.7,0.7728]
[1730847821305,0.0597488,2439.2,2438.8,4.10028]
[1730847821523,0.0597488,2439.2,2439.1,4.87267]
[1730847821655,0.005,2439.3,2439.2,8.4225]
[1730847821859,0.005,2439.3,2439.2,12.14540186]
[1730847822053,0.005,2439.3,2439.2,14.18193105]
[1730847822305,0.005,2439.5,2439.4,8.42216]
[1730847824083,0.005,2439.5,2439.4,8.43216]
[1730847824304,0.005,2439.5,2439.4,8.42216]
[1730847829679,0.005,2439.5,2439.4,4.87216]
[1730847830417,0.005,2439.5,2439.4,5.97298092]
[1730847830597,0.005,2439.5,2439.4,1.87362092]
[1730847830806,0.005,2439.5,2439.4,4.87216]
[1730847831006,0.005,2439.5,2439.4,8.50413278]
[1730847831172,0.005,2439.5,2439.4,8.43216]
[1730847832319,0.005,2439.5,2439.4,8.78668035]
[1730847832621,0.005,2439.5,2439.4,8.43216]
[1730847832773,0.005,2439.5,2439.4,10.05861119]
[1730847833522,0.005,2439.9,2439.6,4.09895]
[1730847834027,0.005,2439.9,2439.8,4.09869]
[1730847834528,0.005,2439.9,2439.8,8.49264871]
[1730847834736,0.005,2439.9,2439.8,8.41069]
[1730847834931,0.005,2439.9,2439.8,9.662642]
[1730847835165,1e-05,2440.0,2439.9,7.65852]
[1730847835289,1e-05,2440.0,2439.9,9.86183492]
[1730847836129,0.0647488,2440.4,2440.3,12.15275186]
[1730847836333,0.0647488,2440.4,2440.3,13.07446194]
[1730847836334,8.8e-06,2440.4,2440.3,13.07446194]
[1730847836542,8.8e-06,2440.4,2440.3,11.48110627]
[1730847836752,8.8e-06,2440.4,2440.3,10.92388322]
[1730847836911,8.8e-06,2440.4,2440.3,10.91388322]
[1730847837111,8.8e-06,2440.4,2440.3,10.92388322]
[1730847837313,8.8e-06,2440.4,2440.3,10.55939619]
[1730847837742,8.8e-06,2440.4,2440.3,6.81628187]
[1730847837953,8.8e-06,2440.4,2440.3,1.312]
[1730847838252,8.8e-06,2440.4,2440.2,4.098]
[1730847838253,8.8e-06,2440.4,2440.0,4.85794]
[1730847838466,8.8e-06,2440.4,2440.1,0.35484201]
[1730847839158,8.8e-06,2440.4,2440.1,4.09816]
[1730847839358,8.8e-06,2440.4,2440.2,4.45285804]
[1730847839529,8.8e-06,2440.4,2440.2,5.0290898]
[1730847839727,8.8e-06,2440.4,2440.2,0.9310798]
[1730847841328,8.8e-06,2440.4,2440.0,1.11465736]
[1730847841644,8.8e-06,2440.4,2440.0,0.7597]
[1730847842243,4.09737,2440.6,2440.1,4.09819]
[1730847843056,4.09737,2440.6,2440.0,4.85791]
[1730847843368,0.005,2440.7,2440.1,0.35472595]
[1730847843369,0.8106,2440.4,2440.1,0.35472595]
[1730847843663,0.005,2440.7,2439.7,4.86854]
[1730847843664,4.91286,2440.7,2439.7,4.86854]
[1730847843820,4.91286,2440.7,2440.0,4.09834]
[1730847844251,4.0976,2440.5,2440.0,4.09834]
[1730847844415,4.09768,2440.4,2439.8,4.62190369]
[1730847844615,0.8156,2440.7,2439.9,0.35471487]
[1730847844812,4.09794,2440.3,2439.9,3.35471487]
[1730847845047,8.19526,2440.5,2439.9,3.0]
[1730847845254,4.09773,2440.4,2440.0,0.35485315]
[1730847845627,4.91288,2440.7,2440.0,0.35485315]
[1730847845952,4.91288,2440.7,2440.0,0.55]
[1730847846252,4.09735,2440.6,2440.1,4.0981]
[1730847846557,4.09735,2440.6,2440.1,4.59839532]
[1730847847114,4.09752,2440.5,2440.1,0.50029532]
[1730847847319,4.09762,2440.5,2439.9,4.66618806]
[1730847847514,4.09762,2440.5,2440.0,4.45351871]
[1730847847753,3.24266174,2440.5,2440.1,0.35520871]
[1730847848174,3.24266174,2440.5,2440.0,4.09831]
[1730847848467,3.24266174,2440.5,2440.1,0.3552365]
[1730847848675,3.24266174,2440.5,2440.2,0.3552365]
[1730847848980,3.24266174,2440.5,2440.0,4.66700862]
[1730847849144,4.09735,2440.6,2440.1,5.33016969]
[1730847849479,4.91288,2440.7,2440.2,0.35544683]
[1730847849667,4.0976,2440.5,2440.3,0.35544683]
[1730847849834,4.0976,2440.5,2440.1,1.44524148]
[1730847850041,4.0976,2440.5,2440.2,0.3556112]
[1730847850340,4.0976,2440.5,2440.3,0.35589236]
[1730847850583,0.8106,2440.4,2439.9,4.09838]
[1730847850742,4.90836,2440.4,2440.0,5.0236136]
[1730847851063,4.90836,2440.4,2440.1,0.9252636]
[1730847851387,4.90836,2440.4,2440.2,0.9252636]
[1730847851552,4.90836,2440.4,2440.3,0.35586979]
[1730847852164,0.8106,2440.4,2440.3,0.35586979]
[1730847853085,4.09753,2440.5,2440.3,0.35586979]
[1730847853291,4.09753,2440.5,2440.4,0.35586979]
[1730847853850,4.09753,2440.5,2440.4,0.35641187]
[1730847854373,4.09745,2440.6,2440.4,0.35641187]
[1730847854572,4.09755,2440.5,2440.1,4.09818]
[1730847854768,4.09755,2440.5,2440.2,1.39357274]
[1730847854969,4.09755,2440.5,2440.3,0.35644736]
[1730847855189,4.09735,2440.6,2440.3,0.35644736]
[1730847855366,4.09735,2440.6,2440.4,0.35644736]
[1730847855571,4.09735,2440.6,2440.2,4.56477644]
[1730847855899,4.09754,2440.5,2440.3,0.3564213]
[1730847856100,4.89887,2440.7,2440.4,0.3564213]
[1730847856284,4.89887,2440.7,2440.2,4.56485644]
[1730847856483,4.89887,2440.7,2440.3,1.2227765]
[1730847856661,0.8016,2440.7,2440.4,0.35647286]
[1730847856860,0.8016,2440.7,2440.4,4.09758]
[1730847857190,0.8016,2440.7,2440.6,4.09735]
[1730847857191,0.005,2440.7,2440.6,4.09735]
[1730847857359,0.005,2440.7,2440.6,4.45379413]
[1730847857562,0.005,2440.7,2440.6,1.21156054]
[1730847858360,0.005,2440.7,2440.6,8.30891054]
[1730847858559,0.005,2440.7,2440.6,9.7118748]
[1730847858762,0.005,2440.7,2440.6,0.85511641]
[1730847858979,0.005,2440.7,2440.6,0.35641388]
[1730847859272,0.005,2440.7,2440.6,0.92677594]
[1730847862935,0.005,2440.7,2440.6,0.92681974]
[1730847864493,0.005,2440.7,2440.6,0.35655539]
[1730847865474,0.005,2440.7,2440.5,4.45406539]
[1730847865802,0.005,2440.7,2440.6,4.45388106]
[1730847866495,0.005,2440.7,2440.6,4.09735]
[1730847867629,0.005,2440.7,2440.5,9.5199989]
[1730847868416,0.005,2440.7,2440.5,9.5199289]
[1730847868822,4.10229,2440.7,2440.3,0.86630364]
[1730847869019,4.09761,2440.5,2440.4,0.35666311]
[1730847869184,4.09761,2440.5,2440.1,4.45493752]
[1730847869385,4.09761,2440.5,2440.2,0.35674752]
[1730847869886,9.02092,2440.6,2440.2,0.35674752]
[1730847870085,4.92341,2440.6,2440.2,0.35674752]
[1730847870311,9.02089,2440.6,2440.2,0.35674752]
[1730847870523,4.92338,2440.6,2440.2,0.35674752]
[1730847871024,9.02085,2440.6,2440.1,4.09819]
[1730847871225,4.92337,2440.6,2440.1,4.09819]
[1730847871394,4.92337,2440.6,2439.8,0.8327]
[1730847871395,4.09802,2440.3,2439.8,4.93137]
[1730847871728,4.09802,2440.3,2439.9,0.35663703]
[1730847871883,4.09781,2440.4,2440.0,0.35663703]
[1730847872083,8.19622,2440.2,2439.9,0.35663703]
[1730847872304,0.492837,2440.6,2439.9,0.35663703]
[1730847872305,0.8259,2440.0,2439.9,0.35663703]
[1730847872522,0.8259,2440.0,2439.7,0.35663703]
[1730847872523,4.09869,2439.8,2439.7,0.35663703]
[1730847872735,4.09903,2439.6,2439.5,0.35663703]
[1730847872952,4.09903,2439.6,2439.2,0.57062139]
[1730847872953,4.92526,2439.4,2439.3,0.35663703]
[1730847873136,4.0996,2439.3,2439.0,0.07134051]
[1730847873447,4.92534,2439.4,2438.8,0.8327]
[1730847873744,4.10059,2438.7,2438.2,1.40332139]
[1730847873889,0.8259,2438.8,2438.1,0.35699014]
[1730847874091,0.8259,2439.1,2438.2,0.91471658]
[1730847874289,4.10032,2438.9,2438.2,0.8327]
[1730847874510,9.02587,2439.1,2438.4,4.10103]
[1730847874721,4.92586,2439.1,2438.5,0.410103]
[1730847874917,5.8259,2439.1,2438.2,0.8327]
[1730847875238,4.92587,2439.1,2438.3,4.18321792]
[1730847875439,0.8259,2439.1,2438.6,4.10058]
[1730847875591,0.8259,2439.1,2438.7,4.18250159]
[1730847875922,0.8259,2439.1,2438.6,4.10058]
[1730847876128,0.8259,2439.1,2438.7,0.410058]
[1730847876337,4.9258,2439.1,2438.6,4.10058]
[1730847876493,4.0996,2439.3,2438.7,0.08200368]
[1730847876690,4.0996,2439.3,2438.6,4.10058]
[1730847876691,4.09985,2439.2,2438.6,4.10058]
[1730847876913,4.09997,2439.1,2438.5,4.10084]
[1730847877692,4.09975,2439.2,2438.6,4.1006]
[1730847877892,4.09975,2439.2,2438.7,0.820144]
[1730847878659,0.8259,2439.1,2438.6,4.1006]
[1730847878817,4.92578,2439.1,2438.5,8.20161]
[1730847879012,4.92578,2439.1,2438.6,4.10071]
[1730847879715,4.10006,2439.0,2438.3,4.10113]
[1730847879958,4.10004,2439.0,2438.3,4.10113]
[1730847880127,4.10004,2439.0,2438.4,4.10095]
[1730847880455,4.10021,2438.9,2438.4,4.10095]
[1730847880946,4.10021,2438.9,2438.3,5.004636]
[1730847881363,4.10021,2438.9,2438.3,9.105746]
[1730847882428,4.10004,2439.0,2438.4,4.10094]
[1730847882628,4.10004,2439.0,2438.4,5.0114976]
[1730847883039,4.92582,2439.1,2438.5,4.10076]
[1730847883244,0.7589,2439.7,2438.6,0.7542]
[1730847883455,0.7589,2439.7,2439.1,4.09977]
[1730847883665,4.09915,2439.6,2439.1,4.09977]
[1730847884621,4.09923,2439.5,2439.0,4.10002]
[1730847884822,4.09903,2439.6,2439.1,4.09985]
[1730847886596,4.09921,2439.5,2439.1,4.09985]
[1730847886756,4.8586,2439.2,2438.7,4.10041]
[1730847886947,0.7589,2439.2,2438.7,8.20086]
[1730847887151,0.7589,2439.2,2438.8,0.895506]
[1730847887749,0.7589,2439.2,2438.4,0.9105576]
[1730847887953,4.10045,2438.8,2438.3,4.10107]
[1730847889101,4.10045,2438.8,2438.3,8.2022]
[1730847889248,4.10023,2438.9,2438.4,4.10102]
[1730847890093,4.10038,2438.8,2438.3,4.10107]
[1730847890281,4.10038,2438.8,2438.3,4.921322]
[1730847890678,4.10037,2438.9,2438.2,4.10127]
[1730847890889,4.10045,2438.8,2438.2,4.10128]
[1730847891065,4.10037,2438.9,2438.3,4.10119]
[1730847891269,4.10037,2438.9,2438.4,4.10103]
[1730847891484,4.10037,2438.9,2438.4,4.10104]
[1730847891819,9.09997,2439.1,2438.4,4.10104]
[1730847891820,0.7589,2439.6,2439.3,4.09941]
[1730847891954,9.09845,2440.0,2439.5,4.0992]
[1730847892151,0.7589,2439.9,2439.5,4.0992]
[1730847892583,4.85743,2439.9,2439.3,8.19884]
[1730847892897,4.09869,2439.8,2439.3,4.09942]
[1730847893094,0.7589,2439.5,2439.0,4.09995]
[1730847893683,0.7589,2439.5,2438.9,4.10015]
[1730847893902,0.7589,2439.5,2438.7,4.85462]
[1730847893903,4.09956,2439.3,2438.7,4.85462]
[1730847894081,4.80819,2439.5,2438.9,4.10019]
[1730847894390,5.789009,2439.5,2438.9,4.10019]
[1730847895155,4.09945,2439.4,2438.9,4.10019]
[1730847896697,5.789009,2439.5,2438.9,4.10019]
[1730847896905,4.09937,2439.4,2438.9,4.10019]
[1730847897909,4.80819,2439.5,2438.9,4.10012]
[1730847898068,0.7089,2439.5,2439.2,4.09959]
[1730847898472,4.09863,2439.9,2439.0,0.41821193]
[1730847898473,0.8014,2439.8,2439.3,4.09941]
[1730847898899,4.9002,2439.8,2439.3,4.09941]
[1730847899870,4.9002,2439.8,2439.3,8.19885]
[1730847900400,4.9002,2439.8,2439.3,4.09941]
[1730847900639,8.99902,2439.8,2439.3,4.09941]
[1730847900806,4.09886,2439.7,2438.7,3.7542]
[1730847900970,4.09886,2439.7,2439.2,4.09962]
[1730847901312,0.8014,2439.8,2439.4,4.09924]
[1730847901511,0.8014,2440.4,2439.5,0.0819828]
[1730847901722,4.09811,2440.2,2439.6,4.09903]
[1730847901873,4.09811,2440.2,2439.0,0.7557]
[1730847901874,4.09911,2439.6,2439.0,0.7557]
[1730847902216,4.09879,2439.8,2439.3,4.09944]
[1730847902574,0.8014,2439.7,2439.2,4.09969]
[1730847902775,4.09904,2439.6,2439.1,4.09985]
[1730847902991,1.50345545,2439.7,2438.8,8.20055]
[1730847903276,1.50345545,2439.7,2438.7,0.7557]
[1730847903277,0.8014,2439.4,2439.0,4.09995]
[1730847903909,4.09954,2439.3,2438.8,4.10022]
[1730847904114,4.09954,2439.3,2438.9,0.35684179]
[1730847904273,0.8014,2439.0,2438.9,0.35684179]
[1730847904491,0.8014,2439.0,2438.4,0.92796015]
[1730847904492,3.8014,2439.0,2438.4,0.92796015]
[1730847904735,3.8014,2439.0,2438.5,0.35684179]
[1730847904736,4.10026,2438.9,2438.5,0.35684179]
[1730847904933,4.10026,2438.9,2438.3,4.10107]
[1730847905134,4.10026,2438.9,2438.3,5.05400184]
[1730847905303,4.10026,2438.9,2438.4,0.35706014]
[1730847905633,4.10026,2438.9,2438.3,5.05400184]
[1730847905788,4.90154,2439.0,2438.4,0.35711441]
[1730847905990,9.00173,2439.0,2438.4,4.4581706]
[1730847906239,9.00173,2439.0,2438.4,4.10102]
[1730847906393,5.8507324,2439.0,2438.3,5.05400184]
[1730847906594,4.10046,2438.8,2438.4,0.35720125]
[1730847906814,4.10046,2438.8,2438.3,4.10107]
[1730847907031,4.10046,2438.8,2438.4,0.35714802]
[1730847907266,0.8014,2439.3,2438.7,4.1004]
[1730847907530,0.8014,2439.3,2438.6,0.7557]
[1730847907531,4.0997,2439.2,2438.6,4.85639]
[1730847907729,4.0997,2439.2,2438.6,5.752108]
[1730847908235,4.09988,2439.1,2438.6,0.895718]
[1730847908419,4.90105,2439.3,2438.6,1.25280585]
[1730847908629,0.8014,2439.3,2438.8,4.10037]
[1730847908828,4.90094,2439.3,2438.8,4.10037]
[1730847908996,4.90103,2439.3,2438.6,4.10058]
[1730847909202,4.90103,2439.3,2438.7,0.35707545]
[1730847909203,8.19993,2439.1,2438.7,0.35707545]
[1730847909500,4.09995,2439.1,2438.6,4.10058]
[1730847909835,8.19991,2439.1,2438.6,4.64334029]
[1730847910035,4.09995,2439.1,2438.6,4.10058]
[1730847910420,0.8014,2439.3,2438.4,4.85664]
[1730847910620,0.8014,2439.1,2438.2,4.85696]
[1730847910822,4.1004,2438.8,2438.3,4.45835449]
[1730847911035,4.1004,2438.8,2438.4,0.35724449]
[1730847911210,4.1004,2438.8,2438.0,4.85729]
[1730847911211,0.8014,2438.6,2438.0,4.85729]
[1730847911437,0.8014,2438.6,2438.2,4.10125]
[1730847911635,4.90212,2438.6,2438.3,0.35726138]
[1730847911796,4.90212,2438.6,2438.2,0.35726138]
[1730847912011,0.8014,2438.6,2438.3,0.35726138]
[1730847912343,4.9022,2438.6,2438.2,0.35726138]
[1730847912551,4.10046,2438.8,2438.4,0.7557]
[1730847912713,4.10055,2438.7,2438.3,4.10119]
[1730847913610,4.10055,2438.7,2438.1,8.95943]
[1730847913813,4.10055,2438.7,2438.2,0.35729449]
[1730847914156,4.10055,2438.7,2438.2,4.45868937]
[1730847914448,4.90049,2438.8,2438.3,4.45848937]
[1730847914639,4.90049,2438.8,2438.3,4.10118]
[1730847914809,5.0,2439.0,2438.3,0.08202137]
[1730847914810,4.90026,2439.0,2438.3,0.08202137]
[1730847915006,4.90024,2439.0,2438.2,4.45846014]
[1730847915242,4.1003,2438.9,2438.4,4.10104]
[1730847915541,4.10038,2438.8,2438.4,4.10104]
[1730847915743,4.10021,2438.9,2438.4,4.10092]
[1730847915919,4.90024,2439.0,2438.3,4.62265601]
[1730847915920,4.10046,2438.8,2438.3,4.62265601]
[1730847916121,8.20099,2438.8,2438.3,4.10115]
[1730847916307,4.10046,2438.8,2438.2,4.10126]
[1730847916516,4.10046,2438.8,2438.1,0.7566]
[1730847916517,4.10056,2438.7,2438.1,0.7566]
[1730847916711,4.10056,2438.7,2438.2,4.45846533]
[1730847916909,4.10056,2438.7,2438.2,4.10136]
[1730847917515,8.20122,2438.7,2438.2,4.10136]
[1730847917715,4.10056,2438.7,2438.2,4.10136]
[1730847918255,8.20122,2438.7,2438.2,4.10136]
[1730847918413,4.920682,2438.7,2438.1,0.7566]
[1730847918614,8.20122,2438.7,2438.1,5.21502572]
[1730847918948,4.90082,2438.6,2438.2,0.35700572]
[1730847919149,4.90082,2438.6,2437.8,0.83575645]
[1730847919150,4.10088,2438.5,2438.1,0.35700572]
[1730847919312,4.10088,2438.5,2437.9,4.10177]
[1730847919511,4.10113,2438.4,2437.8,4.10194]
[1730847919709,4.10113,2438.4,2437.9,0.35705011]
[1730847920631,4.10181,2438.0,2437.5,4.10255]
[1730847920824,4.10222,2437.7,2437.2,5.69530645]
[1730847921026,4.90199,2437.9,2437.3,0.35716632]
[1730847921228,4.10206,2437.8,2437.3,0.35716632]
[1730847921428,4.10222,2437.7,2437.0,4.10328]
[1730847921632,4.1027,2437.5,2436.9,5.43161827]
[1730847921975,4.10291,2437.3,2436.8,4.1633788]
[1730847922248,4.10291,2437.3,2436.8,0.0597488]
[1730847922611,4.593221,2437.3,2436.8,0.0597488]
[1730847922816,0.490301,2437.3,2436.8,0.0597488]
[1730847923014,5.8001,2437.4,2436.9,4.10353]
[1730847923555,5.8001,2437.4,2436.8,4.1633488]
[1730847923744,5.8001,2437.4,2436.9,4.10348]
[1730847924332,0.8001,2437.8,2437.0,4.10331]
[1730847924656,4.10225,2437.7,2437.2,4.10305]
[1730847924853,5.502679,2437.7,2437.2,4.10305]
[1730847926827,4.10225,2437.7,2437.2,4.10305]
[1730847927721,0.8001,2437.8,2437.2,4.10305]
[1730847927963,0.8001,2437.8,2437.3,4.10284]
[1730847928554,0.8001,2437.8,2437.5,4.10253]
[1730847928751,4.87044,2438.1,2437.5,4.10253]
[1730847929025,4.10197,2437.9,2437.2,0.8148]
[1730847929220,4.10197,2437.9,2437.3,8.20556]
[1730847929433,4.10197,2437.9,2437.3,4.10275]
[1730847929619,8.20396,2437.9,2437.3,4.10275]
[1730847931831,4.10197,2437.9,2437.3,8.20554]
[1730847932161,4.20869135,2437.8,2437.3,4.10275]
[1730847932528,0.10653135,2437.8,2437.3,0.08205356]
[1730847932765,8.9721,2438.1,2437.6,4.10236]
[1730847932963,4.10173,2438.0,2437.6,4.10236]
[1730847933147,0.7688,2438.1,2437.8,4.10205]
[1730847933352,0.7688,2438.1,2437.6,4.10229]
[1730847933666,0.7688,2438.1,2437.6,8.20455]
[1730847934781,0.7688,2438.1,2437.7,4.10221]
[1730847935280,0.7688,2438.1,2437.8,4.10191]
[1730847935489,7.87011,2438.3,2437.7,4.91701]
[1730847935785,10.259501,2438.3,2437.7,4.91687]
[1730847936080,0.10642166,2438.2,2437.7,4.10207]
[1730847937565,0.10642166,2438.2,2437.8,4.10205]
[1730847937773,0.7688,2438.3,2437.9,4.10187]
[1730847937996,0.10278498,2438.1,2438.0,4.10172]
[1730847938215,0.7688,2438.6,2438.2,4.10137]
[1730847938542,0.7688,2438.6,2438.2,4.10129]
[1730847938958,4.86952,2438.6,2438.0,5.736759]
[1730847939153,4.86952,2438.6,2438.0,9.01803]
[1730847939770,9.20418068,2438.5,2437.8,4.10192]
[1730847939973,4.10114,2438.4,2437.8,8.20383]
[1730847940249,4.2044381,2438.4,2437.8,8.20383]
[1730847940444,4.10124,2438.3,2437.8,4.10191]
[1730847940873,0.10313375,2438.2,2437.8,4.10191]
[1730847941075,0.87193375,2438.2,2437.8,4.10191]
[1730847941281,4.87019,2438.2,2437.8,4.10191]
[1730847941577,0.10314537,2438.1,2437.8,4.10191]
[1730847943781,0.10314537,2438.1,2437.6,4.10229]
[1730847943782,0.10314537,2438.1,2437.6,8.20454]
[1730847943992,0.10314537,2438.1,2437.7,4.1022]
[1730847944992,4.10189,2437.9,2437.4,4.10264]
[1730847945309,0.09927978,2437.8,2437.6,4.10227]
[1730847945461,4.10158,2438.1,2437.6,8.20456]
[1730847945661,0.09934987,2438.0,2437.7,4.10217]
[1730847946002,0.09934987,2438.0,2437.6,4.10238]
[1730847947493,0.7951,2437.9,2437.3,0.7675]
[1730847947674,4.20128491,2437.8,2437.3,4.87023]
[1730847948490,4.20128491,2437.8,2437.3,8.97303]
[1730847948867,0.09914491,2437.8,2437.4,4.10271]
[1730847949999,4.20121491,2437.8,2437.3,4.87023]
[1730847950166,0.09914491,2437.8,2437.4,4.10265]
[1730847955349,4.20120491,2437.8,2437.4,4.10265]
[1730847955846,0.09914491,2437.8,2437.3,5.767565]
[1730847956002,0.09914491,2437.8,2437.6,4.10236]
[1730847956202,0.7951,2438.1,2437.6,4.10225]
[1730847956444,0.7951,2438.1,2437.7,4.1022]
[1730847956903,4.89665,2438.1,2437.6,4.10225]
[1730847957104,4.1018,2438.0,2437.5,4.10254]
[1730847957360,8.2036,2438.0,2437.5,4.10254]
[1730847957504,1.694916,2438.1,2437.4,4.1026]
[1730847957705,4.10202,2437.9,2437.5,0.35841397]
[1730847957904,4.10202,2437.9,2437.4,4.10272]
[1730847958114,4.10202,2437.9,2437.5,0.35841804]
[1730847958315,4.10202,2437.9,2437.4,4.10263]
[1730847958766,0.7557,2437.6,2437.5,0.35845248]
[1730847958924,0.7557,2437.6,2437.1,4.46167626]
[1730847959254,0.09867503,2437.5,2437.2,0.35854626]
[1730847959552,0.09867503,2437.5,2437.1,4.10313]
[1730847960440,0.09867503,2437.5,2437.2,4.10306]
[1730847960790,0.09867503,2437.5,2437.2,4.923679]
[1730847961251,0.09867503,2437.5,2437.2,0.820619]
[1730847961428,0.09867503,2437.5,2437.2,0.3585117]
[1730847961612,0.09867503,2437.5,2437.1,4.10313]
[1730847961613,4.20126503,2437.5,2437.1,4.10313]
[1730847962246,4.20126503,2437.5,2436.8,0.0597488]
[1730847962247,0.7557,2437.4,2436.8,0.0597488]
[1730847962540,4.10301,2437.3,2436.8,0.41823956]
[1730847962756,4.10301,2437.3,2436.8,4.1633688]
[1730847963040,0.09672589,2437.2,2436.8,4.1633688]
[1730847963202,4.10301,2437.3,2436.8,0.0597488]
[1730847963411,0.09658727,2437.1,2436.8,0.0597488]
[1730847963648,0.7557,2437.0,2436.8,0.0597488]
[1730847963808,4.95557961,2437.0,2436.8,0.0597488]
[1730847965132,4.10357,2436.9,2436.8,0.0597488]
[1730847965645,12.95554629,2436.9,2436.8,0.0597488]
[1730847965803,15.844264,2436.9,2436.8,0.0597488]
[1730847966014,15.844264,2436.9,2436.8,8.8e-06]
[1730847966732,15.854264,2436.9,2436.8,8.8e-06]
[1730847968967,15.304264,2436.9,2436.8,8.8e-06]
[1730847969559,15.854264,2436.9,2436.8,8.8e-06]
[1730847973897,15.854264,2436.9,2435.8,2.10602419]
[1730847973898,4.89425,2435.9,2435.8,2.10602419]
[1730847974100,7.89425,2435.9,2435.8,2.10602419]
[1730847974262,7.98905164,2435.9,2435.8,2.10602419]
[1730847974449,7.99905164,2435.9,2435.8,2.10602419]
[1730847974910,8.00905164,2435.9,2435.8,2.10602419]
[1730847975184,10.03587835,2435.9,2435.8,2.10602419]
[1730847976713,10.03587835,2435.9,2435.2,4.90245]
[1730847976714,10.01587835,2435.9,2435.2,4.90245]
[1730847976929,7.10551,2435.8,2435.2,4.90245]
[1730847977081,7.10551,2435.8,2435.3,4.10625]
[1730847977281,0.09325202,2435.7,2435.3,4.10625]
[1730847977480,0.09325202,2435.7,2435.3,4.10613]
[1730847977680,5.789,2436.2,2435.6,0.8558488]
[1730847977875,0.09324929,2435.7,2435.6,4.9614788]
[1730847978207,5.0,2436.2,2435.8,4.10539]
[1730847978395,9.10435,2436.5,2435.6,1.76258768]
[1730847978603,4.11401,2436.7,2436.0,0.7961]
[1730847978604,5.0,2436.7,2436.0,0.7961]
[1730847978915,4.10467,2436.3,2435.7,9.00718]
[1730847979208,4.10467,2436.3,2435.8,4.10541]
[1730847979371,4.10467,2436.3,2435.7,4.9016]
[1730847979570,9.89342,2436.4,2435.7,4.9016]
[1730847979776,9.89342,2436.4,2435.6,0.0597488]
[1730847979777,3.0,2436.1,2435.6,0.0597488]
[1730847980075,4.89432,2435.9,2435.6,0.0597488]
[1730847980897,4.10552,2435.8,2435.6,0.0597488]
[1730847981505,0.09435804,2435.7,2435.6,0.0597488]
[1730847981816,3.0,2435.9,2435.6,0.0597488]
[1730847981975,0.09430886,2435.7,2435.6,0.0597488]
[1730847982182,3.0,2435.9,2435.6,0.0597488]
[1730847982183,7.1053,2435.9,2435.6,0.0597488]
[1730847982384,0.09437909,2435.7,2435.6,0.0597488]
[1730847982570,7.1053,2435.9,2435.6,0.0597488]
[1730847982767,0.09437664,2435.7,2435.6,0.0597488]
[1730847982979,7.10529,2435.9,2435.6,0.0597488]
[1730847982980,4.10544,2435.8,2435.6,0.0597488]